bitfinex-derivatives/quotes_SOLF0:USTF0_20250309
["timestamp","ask_amount","ask_price","bid_price","bid_amount"]
[1741554197963,50.07126004,128.61,128.53,3.9893]
[1741554198363,50.0157275,128.61,128.53,3.9893]
[1741554198665,19.6157275,128.59,128.52,256.56]
[1741554198967,19.6157275,128.57,128.52,256.56]
[1741554199270,50.06648614,128.57,128.54,0.05279571]
[1741554199466,19.6157275,128.55,128.46,105.88191882]
[1741554199671,7.7827,128.5,128.46,86.26619132]
[1741554200365,7.7843,128.48,128.46,86.26619132]
[1741554200567,0.05454111,128.49,128.47,0.05748821]
[1741554201470,7.83804111,128.49,128.47,0.05748821]
[1741554201671,0.05454111,128.49,128.47,0.05748821]
[1741554202576,7.7863,128.44,128.38,280.1371275]
[1741554203078,7.7863,128.44,128.38,287.9266275]
[1741554203373,7.7859,128.45,128.38,280.1371275]
[1741554203674,0.05467412,128.43,128.4,0.05767485]
[1741554204973,30.4,128.49,128.4,0.05767485]
[1741554205168,38.1834,128.49,128.42,7.787]
[1741554205768,38.1834,128.49,128.43,7.7869]
[1741554206172,0.05247147,128.47,128.45,0.05831347]
[1741554206573,7.83717147,128.47,128.45,0.05831347]
[1741554206766,0.05247147,128.47,128.45,0.05831347]
[1741554207165,7.7872,128.43,128.38,290.9414]
[1741554207369,2.2943,128.48,128.4,7.7886]
[1741554208471,39.21275664,128.44,128.43,2.457e-05]
[1741554208768,69.63275664,128.44,128.43,2.457e-05]
[1741554208964,73.53275664,128.44,128.43,2.457e-05]
[1741554209164,39.21275664,128.44,128.43,2.457e-05]
[1741554209368,7.7863,128.44,128.43,2.457e-05]
[1741554209570,11.6863,128.44,128.43,2.457e-05]
[1741554209769,7.7903,128.38,128.34,8.0422]
[1741554210171,7.7894,128.39,128.34,8.0422]
[1741554210871,0.05968793,128.38,128.35,0.05503427]
[1741554211070,7.84968793,128.38,128.35,0.05503427]
[1741554212276,0.05968793,128.38,128.35,0.05503427]
[1741554212776,7.84998793,128.38,128.35,0.05503427]
[1741554213274,7.7912,128.36,128.35,3.427e-05]
[1741554213577,39.21765664,128.36,128.35,3.427e-05]
[1741554215867,31.42645664,128.36,128.29,3.9702]
[1741554216177,31.42645664,128.36,128.26,7.7971]
[1741554216375,31.42645664,128.36,128.25,8.1135]
[1741554217070,0.05397595,128.32,128.29,0.05672094]
[1741554220371,7.84767595,128.32,128.29,0.05672094]
[1741554221972,0.05397595,128.32,128.29,0.05672094]
[1741554222379,0.05397595,128.32,128.3,7.7946]
[1741554222579,0.05397595,128.32,128.29,0.05672094]
[1741554222972,0.05397595,128.32,128.3,7.7944]
[1741554224276,0.05397595,128.32,128.29,0.05672094]
[1741554224476,0.05397595,128.32,128.3,7.7945]
[1741554224675,0.05397595,128.32,128.29,0.05672094]
[1741554224874,7.7895,128.39,128.3,31.42645664]
[1741554225077,31.42645664,128.4,128.31,8.4409]
[1741554225277,31.42645664,128.38,128.31,8.4409]
[1741554225477,30.44,128.37,128.31,4.2226]
[1741554225976,0.05170786,128.35,128.33,0.05951866]
[1741554229579,7.84360786,128.35,128.33,0.05951866]
[1741554229782,0.05170786,128.35,128.33,0.05951866]
[1741554231081,0.05170786,128.35,128.33,7.85231866]
[1741554231278,7.7894,128.39,128.33,0.05951866]
[1741554231484,30.44,128.4,128.33,0.05951866]
[1741554231879,7.7907,128.37,128.33,0.05951866]
[1741554232079,30.44,128.4,128.33,0.05951866]
[1741554232280,30.44,128.4,128.34,7.792]
[1741554232581,7.8490361,128.38,128.34,7.792]
[1741554232781,7.8490361,128.38,128.36,0.0597746]
[1741554233785,0.0585361,128.38,128.36,0.0597746]
[1741554234781,0.0585361,128.38,128.36,7.8504746]
[1741554234981,0.0585361,128.38,128.36,0.0597746]
[1741554235580,0.0585361,128.38,128.36,7.8505746]
[1741554235887,0.0585361,128.38,128.36,0.0597746]
[1741554236387,0.0585361,128.38,128.37,7.7906]
[1741554237090,0.0585361,128.38,128.37,11.7424]
[1741554237786,0.0585361,128.38,128.36,0.0597746]
[1741554238179,0.0585361,128.38,128.29,4.1705]
[1741554238180,7.7929,128.34,128.29,4.1705]
[1741554238386,61.84645664,128.4,128.24,257.04]
[1741554238387,31.42645664,128.35,128.24,257.04]
[1741554238589,31.42645664,128.35,128.26,4.0965]
[1741554238785,31.42645664,128.32,128.25,4.1705]
[1741554238992,30.42,128.31,128.24,257.04]
[1741554239189,7.7964,128.28,128.24,257.04]
[1741554239395,7.7964,128.28,128.26,0.05249391]
[1741554240093,0.0526839,128.29,128.26,0.05249391]
[1741554240298,7.7966,128.27,128.26,0.05249391]
[1741554240497,0.0526839,128.29,128.26,0.05249391]
[1741554240997,7.7964,128.28,128.26,0.05249391]
[1741554241397,7.796,128.28,128.26,0.05249391]
[1741554242200,0.0526839,128.29,128.26,0.05249391]
[1741554242399,7.8482839,128.29,128.26,0.05249391]
[1741554242697,0.0526839,128.29,128.26,0.05249391]
[1741554243502,31.47914054,128.29,128.26,0.05249391]
[1741554244598,7.7966,128.27,128.26,0.05249391]
[1741554244905,7.7966,128.27,128.26,9.391e-05]
[1741554245498,38.2166,128.27,128.26,9.391e-05]
[1741554245700,7.7998,128.22,128.19,4.0593]
[1741554246307,7.7992,128.23,128.19,4.0593]
[1741554246605,31.42645664,128.26,128.19,4.0593]
[1741554246805,0.05045115,128.22,128.2,7.85683944]
[1741554247003,30.42,128.27,128.2,0.05643944]
[1741554247609,31.42645664,128.26,128.2,0.05643944]
[1741554247915,7.798,128.25,128.2,0.05643944]
[1741554248307,0.0572364,128.24,128.2,0.05643944]
[1741554248509,31.42645664,128.29,128.2,0.05643944]
[1741554248705,222.44,128.3,128.19,4.0593]
[1741554249113,7.7964,128.28,128.19,4.0593]
[1741554249610,7.7964,128.28,128.24,7.7984]
[1741554249810,0.0492087,128.25,128.24,7.7984]
[1741554250403,0.0492087,128.25,128.23,0.05901892]
[1741554250803,7.7955,128.29,128.23,0.05901892]
[1741554251007,222.44,128.3,128.23,0.05901892]
[1741554252111,0.05069899,128.28,128.23,0.05901892]
[1741554252308,0.05069899,128.28,128.25,7.7975]
[1741554253715,0.05069899,128.28,128.23,0.05901892]
[1741554254007,0.05069899,128.28,128.26,7.7972]
[1741554254409,0.05069899,128.28,128.26,7.85307333]
[1741554254813,0.05069899,128.28,128.26,0.05587333]
[1741554255414,0.05069899,128.28,128.26,7.85267333]
[1741554256705,0.05069899,128.28,128.26,0.05587333]
[1741554256905,19.69389772,128.27,128.26,0.05587333]
[1741554257106,19.69389772,128.27,128.19,30.42]
[1741554257305,7.7981,128.25,128.21,7.8002]
[1741554257712,7.7976,128.26,128.22,7.7996]
[1741554258217,0.05991175,128.25,128.23,0.05204477]
[1741554258623,7.7985,128.24,128.23,0.05204477]
[1741554261725,7.7985,128.24,128.23,4.477e-05]
[1741554261921,19.75380947,128.25,128.17,19.7718]
[1741554262119,19.69389772,128.22,128.17,11.9695]
[1741554262521,19.69389772,128.22,128.17,19.7718]
[1741554262720,7.8007,128.21,128.17,19.7718]
[1741554263219,7.85981596,128.2,128.18,0.05750955]
[1741554263424,0.05881596,128.2,128.18,0.05750955]
[1741554264526,7.8015,128.19,128.18,0.05750955]
[1741554265215,7.85991596,128.2,128.18,0.05750955]
[1741554266532,7.8015,128.19,128.18,0.05750955]
[1741554268223,7.85971596,128.2,128.18,0.05750955]
[1741554269331,0.05881596,128.2,128.18,0.05750955]
[1741554270223,7.8015,128.19,128.18,0.05750955]
[1741554271730,7.8015,128.19,128.18,9.55e-06]
[1741554271932,38.2215,128.19,128.18,9.55e-06]
[1741554272229,30.42,128.19,128.18,9.55e-06]
[1741554272430,0.05881596,128.2,128.18,9.55e-06]
[1741554274029,0.05881596,128.2,128.18,7.80180955]
[1741554275429,0.05881596,128.2,128.18,9.55e-06]
[1741554276032,7.85991596,128.2,128.18,9.55e-06]
[1741554276630,7.8015,128.19,128.18,9.55e-06]
[1741554280542,39.36007013,128.19,128.18,9.55e-06]
[1741554280738,7.8039,128.15,128.14,257.12]
[1741554280939,30.42,128.17,128.12,3.9951]
[1741554281237,30.42,128.17,128.11,3.9209]
[1741554281450,30.42,128.17,128.09,3.9524]
[1741554281644,61.97857013,128.17,128.09,3.9524]
[1741554281944,7.8052,128.13,128.12,0.05803845]
[1741554283240,0.05036646,128.14,128.12,0.05803845]
[1741554283748,7.8051,128.13,128.12,0.05803845]
[1741554284844,7.85526646,128.14,128.12,0.05803845]
[1741554285045,0.05036646,128.14,128.12,0.05803845]
[1741554285237,0.05036646,128.14,128.12,7.86343845]
[1741554285949,0.05036646,128.14,128.12,0.05803845]
[1741554286437,223.55857013,128.19,128.12,0.05803845]
[1741554286641,30.42,128.2,128.12,0.05803845]
[1741554286841,38.2212,128.2,128.11,39.99987013]
[1741554287041,30.42,128.2,128.11,39.99987013]
[1741554287237,61.97857013,128.23,128.16,7.803]
[1741554287641,7.8584928,128.21,128.18,0.05567433]
[1741554289049,0.0578928,128.21,128.18,0.05567433]
[1741554289249,0.0578928,128.21,128.19,7.8014]
[1741554289544,0.0578928,128.21,128.18,0.05567433]
[1741554289847,0.0578928,128.21,128.19,7.8014]
[1741554290040,0.0578928,128.21,128.18,0.05567433]
[1741554291141,7.8013,128.2,128.18,0.05567433]
[1741554291442,31.61646293,128.21,128.18,0.05567433]
[1741554291645,7.8013,128.2,128.18,0.05567433]
[1741554292046,31.61646293,128.21,128.18,0.05567433]
[1741554292241,39.41696293,128.21,128.18,0.05567433]
[1741554292443,31.61646293,128.21,128.18,0.05567433]
[1741554292949,7.8583928,128.21,128.18,0.05567433]
[1741554293539,7.8583928,128.21,128.18,7.85737433]
[1741554293745,7.8583928,128.21,128.18,0.05567433]
[1741554293941,7.801,128.2,128.18,0.05567433]
[1741554295748,0.0578928,128.21,128.18,0.05567433]
[1741554296050,7.8584928,128.21,128.18,0.05567433]
[1741554296849,0.0578928,128.21,128.18,0.05567433]
[1741554297653,7.8015,128.19,128.18,0.05567433]
[1741554298646,0.0578928,128.21,128.18,0.05567433]
[1741554299453,7.8013,128.2,128.18,0.05567433]
[1741554299849,0.0578928,128.21,128.18,0.05567433]
[1741554300042,7.8009,128.2,128.18,0.05567433]
[1741554300247,31.61646293,128.21,128.18,0.05567433]
[1741554300851,7.8015,128.19,128.18,0.05567433]
[1741554301348,39.36007013,128.19,128.18,0.05567433]
[1741554303349,7.8039,128.15,128.14,257.42]
[1741554303554,31.55857013,128.19,128.12,4.3089]
[1741554303949,7.8051,128.14,128.12,4.3089]
[1741554304254,31.55857013,128.17,128.11,16.2474]
[1741554304454,7.8049,128.14,128.11,16.2474]
[1741554304655,7.8049,128.14,128.13,0.05876472]
[1741554305149,0.05760076,128.15,128.13,0.05876472]
[1741554305548,0.05760076,128.15,128.14,7.8045]
[1741554306051,31.55857013,128.23,128.13,0.05876472]
[1741554306352,64.28657013,128.25,128.13,288.97857013]
[1741554306552,64.28657013,128.25,128.18,7.8018]
[1741554306553,32.728,128.25,128.18,7.8018]
[1741554306742,7.7988,128.24,128.16,30.4]
[1741554306948,30.4,128.25,128.17,8.0767]
[1741554307150,0.05408663,128.21,128.19,0.0553237]
[1741554307749,0.05408663,128.21,128.19,7.8566237]
[1741554308150,0.05408663,128.21,128.19,0.0553237]
[1741554310352,7.8009,128.2,128.19,0.0553237]
[1741554310752,7.85448663,128.21,128.19,0.0553237]
[1741554310948,0.05408663,128.21,128.19,0.0553237]
[1741554311358,7.8009,128.2,128.19,0.0553237]
[1741554312755,0.05408663,128.21,128.19,0.0553237]
[1741554313859,0.05408663,128.21,128.19,7.8564237]
[1741554315059,7.7981,128.25,128.19,0.0553237]
[1741554315359,7.7981,128.25,128.2,3.976]
[1741554315657,7.7981,128.25,128.21,11.8046]
[1741554315857,7.7981,128.25,128.21,4.0048]
[1741554316254,0.05373738,128.24,128.22,0.05236772]
[1741554316459,7.7991,128.23,128.22,0.05236772]
[1741554319758,0.05373738,128.24,128.22,0.05236772]
[1741554319961,7.85243738,128.24,128.22,0.05236772]
[1741554320865,7.7991,128.23,128.22,0.05236772]
[1741554324363,7.7991,128.23,128.22,6.772e-05]
[1741554330378,7.8024,128.18,128.16,7.8018]
[1741554330772,19.71472289,128.22,128.17,7.8025]
[1741554330974,7.8006,128.21,128.17,7.8025]
[1741554331176,19.71472289,128.22,128.16,7.8018]
[1741554331474,0.05637742,128.2,128.18,0.05306949]
[1741554331677,19.77110031,128.2,128.18,6.949e-05]
[1741554331875,50.15110031,128.2,128.18,6.949e-05]
[1741554332084,7.802,128.19,128.18,6.949e-05]
[1741554332270,50.15110031,128.2,128.09,4.0975]
[1741554332469,7.8034,128.16,128.1,30.38]
[1741554332873,7.8034,128.16,128.13,265.2247]
[1741554333175,7.8034,128.16,128.13,257.42]
[1741554333380,7.804,128.15,128.13,257.47976753]
[1741554334679,7.8045,128.14,128.13,257.47976753]
[1741554336680,0.05014646,128.16,128.13,257.47976753]
[1741554337090,0.05014646,128.16,128.14,7.8045]
[1741554337286,0.05014646,128.16,128.13,257.47976753]
[1741554338180,7.8041,128.15,128.13,257.47976753]
[1741554338486,0.05014646,128.16,128.13,257.47976753]
[1741554339087,19.71472289,128.21,128.14,30.38]
[1741554339387,19.71472289,128.25,128.16,19.71472289]
[1741554339689,10.78327391,128.26,128.2,19.71472289]
[1741554339889,10.78327391,128.26,128.22,7.7993]
[1741554340286,0.05493475,128.25,128.23,0.05932085]
[1741554341185,7.85333475,128.25,128.23,0.05932085]
[1741554342090,7.7985,128.24,128.23,0.05932085]
[1741554342887,39.33505859,128.24,128.23,0.05932085]
[1741554343990,30.43493475,128.25,128.23,0.05932085]
[1741554343991,38.23303475,128.25,128.23,0.05932085]
[1741554344195,30.43493475,128.25,128.23,0.05932085]
[1741554344395,0.05493475,128.25,128.23,0.05932085]
[1741554345094,0.05493475,128.25,128.24,7.7985]
[1741554345490,34.6246,128.33,128.23,0.05932085]
[1741554345696,7.7949,128.3,128.26,7.7967]
[1741554345896,34.6246,128.33,128.26,7.7967]
[1741554346492,4.2446,128.33,128.22,257.36]
[1741554346689,0.05239726,128.31,128.28,0.05227572]
[1741554353405,7.7952,128.3,128.28,0.05227572]
[1741554353705,0.05239726,128.31,128.28,0.05227572]
[1741554353904,0.05239726,128.31,128.28,7.84797572]
[1741554354500,7.84709726,128.31,128.28,0.05227572]
[1741554354900,0.05239726,128.31,128.28,0.05227572]
[1741554355204,7.7948,128.3,128.28,0.05227572]
[1741554356307,7.84699726,128.31,128.28,0.05227572]
[1741554356507,0.05239726,128.31,128.28,0.05227572]
[1741554356707,7.7952,128.3,128.28,0.05227572]
[1741554358309,0.05239726,128.31,128.28,0.05227572]
[1741554358513,7.84679726,128.31,128.28,0.05227572]
[1741554358711,0.05239726,128.31,128.28,0.05227572]
[1741554359606,7.84669726,128.31,128.28,0.05227572]
[1741554360007,0.05239726,128.31,128.28,0.05227572]
[1741554360207,7.7954,128.29,128.28,0.05227572]
[1741554361307,7.7982,128.25,128.21,12.2902]
[1741554361506,31.53655859,128.28,128.21,12.2902]
[1741554361909,7.7991,128.23,128.21,12.2902]
[1741554362706,7.7991,128.23,128.21,12.34548038]
[1741554363107,19.70473415,128.29,128.21,12.34548038]
[1741554363303,30.34,128.3,128.22,307.40473415]
[1741554363709,38.1351,128.3,128.25,7.7974]
[1741554364111,38.1351,128.3,128.22,307.40473415]
[1741554364307,0.05444732,128.29,128.26,0.05616089]
[1741554364911,19.75918147,128.29,128.26,0.05616089]
[1741554365112,0.05444732,128.29,128.26,0.05616089]
[1741554365313,0.05444732,128.29,128.26,7.85336089]
[1741554365613,0.05444732,128.29,128.26,0.05616089]
[1741554366809,7.7961,128.28,128.26,0.05616089]
[1741554368409,0.05444732,128.29,128.26,0.05616089]
[1741554368712,7.85014732,128.29,128.26,0.05616089]
[1741554369603,0.05444732,128.29,128.26,0.05616089]
[1741554370009,0.05444732,128.29,128.28,7.796]
[1741554372011,7.7915,128.36,128.28,19.70473415]
[1741554372211,54.04413415,128.39,128.3,19.70473415]
[1741554372416,54.04413415,128.39,128.3,50.02473415]
[1741554373019,0.05308729,128.36,128.33,0.05411944]
[1741554373818,23.60193415,128.43,128.34,19.70473415]
[1741554374017,19.70473415,128.43,128.35,7.9685]
[1741554374220,7.7879,128.42,128.37,7.7902]
[1741554374818,129.39928698,128.46,128.35,7.9685]
[1741554374819,61.76870659,128.46,128.35,39.41720659]
[1741554375317,0.05577163,128.4,128.38,0.05753546]
[1741554375820,0.05192809,128.4,128.38,0.05838535]
[1741554377621,30.32,128.46,128.38,30.37838535]
[1741554377817,7.7866,128.44,128.38,38.16808535]
[1741554378026,3.8972,128.47,128.38,30.32]
[1741554378316,7.7867,128.44,128.39,7.7892]
[1741554378623,0.05143991,128.43,128.4,0.04915202]
[1741554379325,7.7881,128.41,128.4,0.04915202]
[1741554380922,0.05143991,128.43,128.4,0.04915202]
[1741554384124,7.7876,128.42,128.4,0.04915202]
[1741554384723,0.05143991,128.43,128.4,0.04915202]
[1741554385518,0.05143991,128.43,128.41,7.7878]
[1741554385825,6.4753,128.51,128.42,30.3]
[1741554386626,31.44870659,128.48,128.41,4.0415]
[1741554386816,31.44870659,128.44,128.36,4.302]
[1741554387020,31.44870659,128.44,128.43,7.766e-05]
[1741554387216,31.44870659,128.44,128.36,4.302]
[1741554387421,31.44870659,128.42,128.34,34.3216]
[1741554387722,7.7911,128.37,128.34,4.0216]
[1741554387923,31.44870659,128.42,128.34,4.0216]
[1741554388125,31.44870659,128.4,128.33,256.96]
[1741554388327,0.05163071,128.39,128.37,0.05486326]
[1741554388827,7.7899,128.38,128.37,0.05486326]
[1741554389324,0.05163071,128.39,128.37,0.05486326]
[1741554390027,7.7899,128.38,128.37,0.05486326]
[1741554390223,0.05163071,128.39,128.37,0.05486326]
[1741554390929,7.7899,128.38,128.37,0.05486326]
[1741554391425,7.84123071,128.39,128.37,0.05486326]
[1741554391626,0.05163071,128.39,128.37,0.05486326]
[1741554391930,7.7899,128.38,128.37,0.05486326]
[1741554393218,31.44870659,128.38,128.33,256.96]
[1741554393530,31.44870659,128.38,128.29,34.3016]
[1741554393730,31.44870659,128.38,128.29,4.0216]
[1741554394035,31.44870659,128.36,128.29,4.0216]
[1741554394326,31.44870659,128.36,128.26,264.982]
[1741554394327,30.28,128.35,128.26,264.982]
[1741554394520,7.7936,128.32,128.31,7.274e-05]
[1741554395633,7.7931,128.33,128.31,7.274e-05]
[1741554395833,0.05479565,128.34,128.31,7.274e-05]
[1741554396929,33.84150659,128.42,128.32,31.44870659]
[1741554397128,64.14150659,128.42,128.33,30.3]
[1741554397428,7.7897,128.39,128.33,30.3]
[1741554398030,0.04960099,128.37,128.35,0.0578944]
[1741554401432,7.7912,128.36,128.35,0.0578944]
[1741554402527,7.7937,128.32,128.3,3.9081]
[1741554402726,61.72870659,128.38,128.3,3.9081]
[1741554403642,7.7924,128.34,128.3,3.9081]
[1741554403832,7.7924,128.34,128.33,0.05200902]
[1741554404139,7.7953,128.3,128.27,8.0447]
[1741554404437,31.44870659,128.36,128.29,7.7954]
[1741554404634,7.7928,128.34,128.27,8.0447]
[1741554405333,0.04946359,128.32,128.29,0.05489177]
[1741554405539,30.28,128.38,128.32,7.7935]
[1741554405739,0.05888063,128.32,128.3,4.0806]
[1741554406037,30.28,128.38,128.3,4.0806]
[1741554406340,30.28,128.38,128.3,11.875]
[1741554406540,0.05483587,128.35,128.33,0.04961561]
[1741554409336,7.7924,128.34,128.33,0.04961561]
[1741554409739,7.84693587,128.35,128.33,0.04961561]
[1741554410240,0.05483587,128.35,128.33,0.04961561]
[1741554410639,0.05483587,128.35,128.33,30.34961561]
[1741554410839,0.05483587,128.35,128.34,7.7924]
[1741554411739,0.05483587,128.35,128.33,30.34961561]
[1741554411740,0.05483587,128.35,128.33,0.04961561]
[1741554412441,7.7924,128.34,128.33,0.04961561]
[1741554412835,0.05483587,128.35,128.25,1.3560643]
[1741554413034,3.9949,128.36,128.26,287.26]
[1741554413239,31.44870659,128.35,128.26,287.26]
[1741554413435,31.44870659,128.35,128.27,15.841]
[1741554413745,7.7947,128.31,128.27,15.841]
[1741554413931,31.44870659,128.35,128.27,15.841]
[1741554414135,7.8529732,128.3,128.28,0.04983557]
[1741554414332,7.7952,128.3,128.28,0.04983557]
[1741554414638,7.8486377,128.3,128.28,0.04983557]
[1741554415644,0.0534377,128.3,128.28,0.04983557]
[1741554416244,7.8488377,128.3,128.28,0.04983557]
[1741554416945,0.0534377,128.3,128.28,0.04983557]
[1741554420350,0.0534377,128.3,128.29,7.7954]
[1741554421044,30.3,128.37,128.28,0.04983557]
[1741554421349,30.3,128.37,128.27,35.41770659]
[1741554421541,30.3,128.37,128.29,30.3]
[1741554421542,7.7935,128.33,128.29,30.3]
[1741554421747,30.3,128.37,128.29,30.3]
[1741554422047,7.7942,128.32,128.29,30.3]
[1741554422248,0.05782426,128.34,128.32,0.05862843]
[1741554422449,0.05782426,128.34,128.26,287.26]
[1741554422647,7.793,128.33,128.32,5.599e-05]
[1741554422848,2.0893,128.35,128.27,7.7966]
[1741554423049,2.0893,128.35,128.26,287.26]
[1741554423248,31.44870659,128.34,128.26,256.96]
[1741554423453,31.44870659,128.32,128.26,256.96]
[1741554423753,0.0513681,128.3,128.28,0.05042849]
[1741554424249,7.7954,128.29,128.28,0.05042849]
[1741554424849,7.8464681,128.3,128.28,0.05042849]
[1741554425049,0.0513681,128.3,128.28,0.05042849]
[1741554425649,61.74870659,128.29,128.19,1.35661937]
[1741554425852,63.89150659,128.29,128.18,8.2525]
[1741554426050,31.44870659,128.26,128.18,3.9829]
[1741554426250,30.34,128.25,128.18,3.9829]
[1741554426445,30.34,128.25,128.15,4.1481]
[1741554426642,30.34,128.25,128.16,4.2538]
[1741554426842,0.05290536,128.21,128.19,0.05006026]
[1741554429457,7.85360536,128.21,128.19,0.05006026]
[1741554429753,0.05290536,128.21,128.19,0.05006026]
[1741554432052,7.85330536,128.21,128.19,0.05006026]
[1741554432253,0.05290536,128.21,128.19,0.05006026]
[1741554432649,7.85340536,128.21,128.19,0.05006026]
[1741554433744,0.05290536,128.21,128.19,0.05006026]
[1741554436653,7.8009,128.2,128.19,0.05006026]
[1741554437957,7.85360536,128.21,128.19,0.05006026]
[1741554438158,0.05290536,128.21,128.19,0.05006026]
[1741554438357,30.6,128.2,128.12,257.14]
[1741554438557,31.44870659,128.19,128.12,257.14]
[1741554438853,31.44870659,128.19,128.12,264.9457]
[1741554439451,31.44870659,128.19,128.12,257.14]
[1741554439650,0.04974773,128.17,128.14,0.05147655]
[1741554439961,7.8039,128.15,128.14,0.05147655]
[1741554440658,0.04974773,128.17,128.14,0.05147655]
[1741554441061,7.85264773,128.17,128.14,0.05147655]
[1741554441659,0.04974773,128.17,128.14,0.05147655]
[1741554442961,0.04974773,128.17,128.16,7.8033]
[1741554443152,0.04974773,128.17,128.15,4.1501]
[1741554444663,31.44870659,128.24,128.15,4.1501]
[1741554445963,7.85372972,128.21,128.18,0.05175918]
[1741554446166,0.05322972,128.21,128.18,0.05175918]
[1741554447167,0.05322972,128.21,128.18,7.85355918]
[1741554447466,0.05322972,128.21,128.18,0.05175918]
[1741554447659,111.37982864,128.26,128.19,3.9074]
[1741554447863,7.7989,128.24,128.2,7.8005]
[1741554448267,7.7994,128.23,128.19,11.7086]
[1741554448463,111.37982864,128.26,128.19,3.9074]
[1741554448859,0.05912814,128.24,128.21,7.85882154]
[1741554449064,0.05912814,128.24,128.21,0.05902154]
[1741554449571,0.05912814,128.24,128.22,7.7992]
[1741554449868,0.05912814,128.24,128.21,30.83902154]
[1741554450259,0.05912814,128.24,128.22,38.5397]
[1741554450463,0.05912814,128.24,128.22,30.74]
[1741554450871,0.05912814,128.24,128.23,7.7991]
[1741554451074,0.05912814,128.24,128.22,30.74]
[1741554451666,0.05912814,128.24,128.23,7.7991]
[1741554451864,62.14870659,128.31,128.22,30.74]
[1741554452967,7.7971,128.27,128.25,0.05351046]
[1741554453767,7.7967,128.27,128.25,0.05351046]
[1741554454078,0.05290903,128.28,128.25,0.05351046]
[1741554454969,7.797,128.27,128.25,0.05351046]
[1741554456466,7.7972,128.26,128.25,0.05351046]
[1741554457876,0.05290903,128.28,128.25,0.05351046]
[1741554458279,0.05290903,128.28,128.25,7.85121046]
[1741554459473,0.05290903,128.28,128.26,7.7968]
[1741554459675,0.05290903,128.28,128.26,11.7322]
[1741554459881,0.05290903,128.28,128.26,46.3059]
[1741554461777,0.05290903,128.28,128.26,38.5091]
[1741554461978,19.69544035,128.34,128.27,7.7965]
[1741554462180,19.69544035,128.34,128.26,58.20454035]
[1741554462480,19.69544035,128.36,128.26,58.20454035]
[1741554463077,0.05478358,128.32,128.3,0.05613004]
[1741554465782,0.05478358,128.32,128.31,7.7942]
[1741554466384,0.05478358,128.32,128.3,38.19073004]
[1741554468294,0.05478358,128.32,128.3,30.39613004]
[1741554469784,0.05478358,128.32,128.3,38.19083004]
[1741554471996,0.05478358,128.32,128.3,30.39613004]
[1741554473098,19.69544035,128.4,128.3,50.09157039]
[1741554473397,19.69544035,128.4,128.32,7.7932]
[1741554474090,0.04959818,128.37,128.35,0.04999741]
[1741554474595,7.84039818,128.37,128.35,0.04999741]
[1741554474790,0.04959818,128.37,128.35,0.04999741]
[1741554475297,7.7912,128.36,128.35,0.04999741]
[1741554476085,27.48664035,128.36,128.35,0.04999741]
[1741554479099,7.7912,128.36,128.35,0.04999741]
[1741554480001,0.04959818,128.37,128.35,0.04999741]
[1741554480198,7.84049818,128.37,128.35,0.04999741]
[1741554480599,0.04959818,128.37,128.35,0.04999741]
[1741554480902,7.7912,128.36,128.35,0.04999741]
[1741554481794,7.84039818,128.37,128.35,0.04999741]
[1741554482196,0.04959818,128.37,128.35,0.04999741]
[1741554483096,0.04959818,128.37,128.36,7.7912]
[1741554483502,0.04959818,128.37,128.35,7.84129741]
[1741554483698,30.3,128.44,128.35,0.04999741]
[1741554483699,19.69544035,128.44,128.35,0.04999741]
[1741554483904,49.99544035,128.44,128.34,54.02664035]
[1741554484100,7.7885,128.41,128.37,7.7902]
[1741554485005,7.7893,128.39,128.38,0.05594293]
[1741554485207,0.05924909,128.4,128.3,49.99544035]
[1741554485208,19.69544035,128.4,128.3,49.99544035]
[1741554485404,19.69544035,128.38,128.3,49.99544035]
[1741554485600,7.793,128.33,128.3,30.3]
[1741554485800,19.69544035,128.38,128.3,30.3]
[1741554486405,0.05920272,128.35,128.33,0.05636946]
[1741554486608,7.7924,128.34,128.33,0.05636946]
[1741554495516,0.05920272,128.35,128.33,0.05636946]
[1741554497619,0.05920272,128.35,128.33,7.84896946]
[1741554498018,0.05920272,128.35,128.34,30.28]
[1741554502021,0.05920272,128.35,128.34,38.0724]
[1741554502316,19.69544035,128.4,128.34,34.2437]
[1741554502518,19.69544035,128.4,128.34,42.0359]
[1741554503223,7.84314661,128.38,128.36,0.05277472]
[1741554503417,0.05274661,128.38,128.36,0.05277472]
[1741554504423,7.7906,128.37,128.36,0.05277472]
[1741554507828,0.05274661,128.38,128.36,0.05277472]